fUSD/lending_fUSD_20240329
["ID","MTS","AMOUNT","RATE_DAILY","PERIOD"]
[320976198,1711726268523,-1919.57,0.00050958,120]
[320976199,1711726268533,-500.0,0.00050958,120]
[320976200,1711726268544,-500.0,0.00050958,120]
[320976201,1711726268557,-500.0,0.00050958,120]
[320976202,1711726268567,-500.0,0.00050958,120]
[320976203,1711726268577,-790.31,0.00050958,120]
[320976204,1711726268587,-500.0,0.00050958,120]
[320976205,1711726268597,-500.0,0.00050958,120]
[320976206,1711726268607,-3250.79,0.00050958,120]
[320976207,1711726268617,-500.0,0.00050958,120]
[320976208,1711726268626,-543.43,0.00050958,120]
[320976209,1711726268637,-2026.92,0.00050958,120]
[320976210,1711726268646,-2794.01,0.00050958,120]
[320976211,1711726268656,-508.65,0.00050958,120]
[320976212,1711726268665,-543.18,0.00050958,120]
[320976213,1711726268675,-500.0,0.00050958,120]
[320976214,1711726268684,-500.0,0.00050958,120]
[320976215,1711726268694,-725.25,0.00050958,120]
[320976216,1711726268703,-500.0,0.00050958,120]
[320976217,1711726268713,-500.0,0.00050958,120]
[320976218,1711726268723,-500.0,0.00050958,120]
[320976219,1711726268732,-1985.65,0.00050958,120]
[320976220,1711726268741,-500.0,0.00050958,120]
[320976221,1711726268751,-778.03,0.00050958,120]
[320976222,1711726268761,-966.8,0.00050958,120]
[320976223,1711726268771,-15575.03,0.00050958,120]
[320976224,1711726268780,-500.0,0.00050958,120]
[320976225,1711726268790,-1347.71,0.00050958,120]
[320976226,1711726268800,-500.0,0.00050958,120]
[320976227,1711726268810,-1542.42,0.00050958,120]
[320976228,1711726268820,-500.0,0.00050958,120]
[320976229,1711726268830,-500.0,0.00050958,120]
[320976230,1711726268841,-1449.82,0.00050958,120]
[320976231,1711726268851,-500.0,0.00050958,80]
[320976232,1711726268861,-2716.26,0.00050958,120]
[320976233,1711726268871,-764.96,0.00050958,120]
[320976234,1711726268881,-1663.53,0.00050958,120]
[320976235,1711726268891,-500.0,0.00050958,120]
[320976236,1711726268900,-1151.51,0.00050958,120]
[320976237,1711726268911,-500.0,0.00050958,120]
[320976238,1711726268921,-500.0,0.00050958,120]
[320976239,1711726268931,-769.64,0.00050958,120]
[320976240,1711726268940,-1016.62,0.00050958,120]
[320976241,1711726268950,-784.23,0.00050958,120]
[320976242,1711726268959,-500.0,0.00050958,120]
[320976243,1711726268968,-500.0,0.00050958,120]
[320976244,1711726268977,-500.0,0.00050958,120]
[320976245,1711726268986,-1622.26,0.00050958,120]
[320976246,1711726268995,-500.0,0.00050958,120]
[320976247,1711726269005,-500.0,0.00050958,120]
[320976248,1711726269014,-1424.61,0.00050958,120]
[320976249,1711726269023,-513.82448945,0.00050958,120]
[320976250,1711726269032,-500.0,0.00050958,120]
[320976251,1711726269042,-500.0,0.00050958,120]
[320976252,1711726269055,-815.78,0.00050958,120]
[320976253,1711726269066,-500.0,0.00050958,120]
[320976254,1711726269076,-500.0,0.00050958,120]
[320976255,1711726269086,-500.0,0.00050958,120]
[320976256,1711726269096,-500.0,0.00050958,120]
[320976257,1711726269107,-500.0,0.00050958,120]
[320976258,1711726269116,-500.0,0.00050958,60]
[320976259,1711726269129,-992.25,0.00050958,120]
[320976260,1711726269143,-11718.94,0.00050958,120]
[320976261,1711726269153,-743.51,0.00050958,120]
[320976262,1711726269164,-765.17,0.00050958,120]
[320976263,1711726269174,-890.38,0.00050958,120]
[320976264,1711726269185,-553.36,0.00050958,120]
[320976265,1711726269196,-8521.15,0.00050958,120]
[320976266,1711726269208,-500.0,0.00050958,120]
[320976267,1711726269218,-500.0,0.00050958,120]
[320976268,1711726269228,-500.0,0.00050958,120]
[320976269,1711726269238,-500.0,0.00050958,120]
[320976270,1711726269248,-500.0,0.00050958,120]
[320976271,1711726269259,-648.88,0.00050958,120]
[320976272,1711726269269,-500.0,0.00050958,120]
[320976273,1711726269279,-1919.3,0.00050958,120]
[320976274,1711726269290,-500.0,0.00050958,120]
[320976275,1711726269304,-500.0,0.00050958,120]
[320976276,1711726269314,-2207.99,0.00050958,120]
[320976277,1711726269324,-500.0,0.00050958,120]
[320976278,1711726269334,-1309.66,0.00050958,120]
[320976279,1711726269344,-557.08,0.00050958,120]
[320976280,1711726269354,-1108.08,0.00050958,120]
[320976281,1711726269364,-1833.17,0.00050958,120]
[320976282,1711726269374,-500.0,0.00050958,120]
[320976283,1711726269384,-607.25,0.00050958,120]
[320976284,1711726269394,-815.81,0.00050958,120]
[320976285,1711726269404,-1018.76,0.00050958,120]
[320976286,1711726269414,-862.41,0.00050958,120]
[320976287,1711726269426,-500.0,0.00050958,120]
[320976288,1711726269437,-500.0,0.00050958,120]
[320976289,1711726269448,-500.0,0.00050958,120]
[320976290,1711726269458,-1702.99,0.00050958,120]
[320976291,1711726269467,-1165.7,0.00050958,120]
[320976292,1711726269477,-1004.77,0.00050958,120]
[320976293,1711726269488,-696.93,0.00050958,120]
[320976294,1711726269499,-500.0,0.00050958,120]
[320976295,1711726269510,-500.0,0.00050958,120]
[320976296,1711726269520,-500.0,0.00050958,120]
[320976297,1711726269531,-500.0,0.00050958,120]
[320976298,1711726269540,-1354.93,0.00050958,21]
[320976299,1711726269554,-500.0,0.00050958,120]
[320976300,1711726269565,-977.65,0.00050958,120]
[320976301,1711726269574,-1113.41,0.00050958,120]
[320976302,1711726269585,-500.0,0.00050958,120]
[320976303,1711726269596,-3333.95,0.00050958,120]
[320976304,1711726269606,-500.0,0.00050958,120]
[320976305,1711726269616,-500.0,0.00050958,120]
[320976306,1711726269626,-572.67,0.00050958,120]
[320976307,1711726269635,-683.76,0.00050958,120]
[320976308,1711726269644,-537.82455013,0.00050958,120]
[320976309,1711726269654,-500.0,0.00050958,120]
[320976310,1711726269664,-500.0,0.00050958,120]
[320976311,1711726269673,-7484.68,0.00050958,120]
[320976312,1711726269682,-1354.15,0.00050958,120]
[320976313,1711726269692,-158.47631155,0.00050958,120]
[320976314,1711726269702,-1280.61,0.00050958,120]
[320976315,1711726269711,-500.0,0.00050958,120]
[320976316,1711726269721,-500.0,0.00050958,120]
[320976317,1711726269730,-3298.9,0.00050958,120]
[320976318,1711726269740,-553.1,0.00050958,120]
[320976319,1711726269749,-3130.3,0.00050958,120]
[320976320,1711726269759,-2135.45,0.00050958,120]
[320976321,1711726269769,-1018.52,0.00050958,120]
[320976322,1711726269779,-2568.4,0.00050958,120]
[320976323,1711726269789,-594.87,0.00050958,120]
[320976324,1711726269801,-824.29,0.00050958,120]
[320976325,1711726269811,-628.61,0.00050958,120]
[320976326,1711726269821,-1054.95,0.00050958,120]
[320976327,1711726269831,-947.76,0.00050958,120]
[320976328,1711726269840,-500.0,0.00050958,120]
[320976329,1711726269849,-500.0,0.00050958,120]
[320976330,1711726269859,-500.0,0.00050958,120]
[320976331,1711726269869,-805.33,0.00050958,120]
[320976332,1711726269878,-500.0,0.00050958,120]
[320976333,1711726269887,-652.14,0.00050958,120]
[320976334,1711726269897,-1405.95,0.00050958,68]
[320976335,1711726269907,-500.0,0.00050958,120]
[320976336,1711726269917,-1684.07,0.00050958,120]
[320976337,1711726269928,-1222.42,0.00050958,120]
[320976338,1711726269938,-500.0,0.00050958,120]
[320976339,1711726269948,-500.0,0.00050958,120]
[320976340,1711726269957,-500.0,0.00050958,120]
[320976341,1711726269967,-647.43,0.00050958,120]
[320976342,1711726269977,-637.47,0.00050958,120]
[320976343,1711726269986,-296.23738871,0.00050958,120]
[320976344,1711726269996,-929.07,0.00050958,120]
[320976345,1711726270006,-212.45,0.00050958,120]
[320976346,1711726270017,-500.0,0.00050958,120]
[320976347,1711726270026,-1752.94,0.00050958,120]
[320976348,1711726270036,-506.23,0.00050958,120]
[320976349,1711726270045,-1482.27,0.00050958,120]
[320976350,1711726270058,-500.0,0.00050958,120]
[320976351,1711726270067,-1080.07,0.00050958,120]
[320976352,1711726270076,-500.0,0.00050958,120]
[320976353,1711726270086,-500.0,0.00050958,120]
[320976354,1711726270095,-917.61,0.00050958,120]
[320976355,1711726270104,-500.0,0.00050958,120]
[320976356,1711726270114,-824.53,0.00050958,120]
[320976357,1711726270125,-641.26,0.00050958,120]
[320976358,1711726270135,-421.74,0.00050958,120]
[320976359,1711726270144,-579.18,0.00050958,120]
[320976360,1711726270157,-572.87,0.00050958,120]
[320976361,1711726270167,-500.0,0.00050958,120]
[320976362,1711726270176,-1389.6,0.00050958,120]
[320976363,1711726270187,-975.56,0.00050958,120]
[320976364,1711726270198,-500.0,0.00050958,120]
[320976365,1711726270208,-500.0,0.00050958,120]
[320976366,1711726270218,-180.10613291,0.00050958,120]
[320976367,1711726270229,-500.0,0.00050958,120]
[320976368,1711726270239,-600.0,0.00051,52]
[320976369,1711726270250,-700.0,0.00051,3]
[320976370,1711726270260,-650.0,0.00051,120]
[320976371,1711726270269,-227.38888889,0.00051014,120]
[320976372,1711726270279,-152.76860509,0.00051046,60]
[320976373,1711726270289,-150.0,0.00051074,30]
[320976374,1711726270301,-150.0,0.00051074,30]
[320976375,1711726270310,-150.0,0.00051074,30]
[320976376,1711726270319,-150.0,0.00051074,30]
[320976377,1711726270328,-150.0,0.00051074,30]
[320976378,1711726270337,-300.0,0.00051074,30]
[320976379,1711726270347,-150.0,0.00051096,30]
[320976380,1711726270356,-150.0,0.00051096,30]
[320976381,1711726270365,-150.0,0.00051096,30]
[320976382,1711726270375,-150.0,0.00051096,30]
[320976383,1711726270384,-150.0,0.00051096,30]
[320976384,1711726270394,-150.0,0.00051096,30]
[320976385,1711726270405,-150.0,0.00051096,30]
[320976386,1711726270415,-153.44,0.00051096,30]
[320976387,1711726270425,-155.61103005,0.0005114,60]
[320976388,1711726270436,-157.78437131,0.00051178,60]
[320976389,1711726270446,-500.0,0.00051221,60]
[320976390,1711726270456,-311.0,0.00051221,60]
[320976391,1711726270466,-304.0,0.00051221,60]
[320976392,1711726270476,-300.0,0.00051221,60]
[320976393,1711726270486,-507.0,0.00051221,60]
[320976394,1711726270496,-253.21404499,0.00051222,2]
[320976395,1711726270505,-500.0,0.00051232,120]
[320976396,1711726270515,-500.0,0.00051232,120]
[320976397,1711726270525,-500.0,0.00051232,120]
[320976398,1711726270535,-500.0,0.00051232,120]
[320976399,1711726270545,-500.0,0.00051232,120]
[320976400,1711726270556,-500.0,0.00051232,120]
[320976401,1711726270566,-500.0,0.00051232,120]
[320976402,1711726270575,-500.0,0.00051232,120]
[320976403,1711726270585,-500.0,0.00051232,120]
[320976404,1711726270594,-500.0,0.00051232,120]
[320976405,1711726270604,-500.0,0.00051232,120]
[320976406,1711726270614,-500.0,0.00051232,120]
[320976407,1711726270624,-500.0,0.00051232,120]
[320976408,1711726270633,-500.0,0.00051232,120]
[320976409,1711726270642,-500.0,0.00051232,120]
[320976410,1711726270652,-500.0,0.00051232,120]
[320976411,1711726270661,-500.0,0.00051232,2]
[320976412,1711726270671,-500.0,0.00051232,120]
[320976413,1711726270680,-500.0,0.00051232,120]
[320976414,1711726270690,-500.0,0.00051232,120]
[320976415,1711726270699,-500.0,0.00051232,120]
[320976416,1711726270709,-464.14,0.00051232,120]
[320976417,1711726270718,-500.0,0.00051232,120]
[320976418,1711726270728,-500.0,0.00051232,120]
[320976419,1711726270737,-500.0,0.00051232,120]
[320976420,1711726270747,-500.0,0.00051232,120]
[320976421,1711726270757,-500.0,0.00051232,2]
[320976422,1711726270766,-500.0,0.00051232,120]
[320976423,1711726270775,-500.0,0.00051232,120]
[320976424,1711726270785,-500.0,0.00051232,120]
[320976425,1711726270794,-500.0,0.00051232,120]
[320976426,1711726270806,-500.0,0.00051232,120]
[320976427,1711726270815,-500.0,0.00051232,120]
[320976428,1711726270824,-500.0,0.00051232,2]
[320976429,1711726270833,-500.0,0.00051232,120]
[320976430,1711726270842,-500.0,0.00051232,120]
[320976431,1711726270851,-900.75,0.00051232,120]
[320976432,1711726270861,-500.0,0.00051232,120]
[320976433,1711726270870,-500.0,0.00051232,120]
[320976434,1711726270878,-500.0,0.00051232,120]
[320976435,1711726270887,-500.0,0.00051232,120]
[320976436,1711726270897,-500.0,0.00051232,120]
[320976437,1711726270905,-500.0,0.00051232,120]
[320976438,1711726270915,-541.66,0.00051232,120]
[320976439,1711726270924,-500.0,0.00051232,120]
[320976440,1711726270933,-500.0,0.00051232,120]
[320976441,1711726270942,-500.0,0.00051232,120]
[320976442,1711726270951,-500.0,0.00051232,120]
[320976443,1711726270960,-500.0,0.00051232,120]
[320976444,1711726270969,-500.0,0.00051232,120]
[320976445,1711726270978,-500.0,0.00051232,120]
[320976446,1711726270987,-500.0,0.00051232,120]
[320976447,1711726270995,-500.0,0.00051232,120]
[320976448,1711726271005,-500.0,0.00051232,120]
[320976449,1711726271014,-500.0,0.00051232,120]
[320976450,1711726271024,-500.0,0.00051232,120]
[320976451,1711726271033,-500.0,0.00051232,120]
[320976452,1711726271042,-500.0,0.00051232,120]
[320976453,1711726271053,-500.0,0.00051232,120]
[320976454,1711726271063,-357.78453157,0.00051232,120]
[320976455,1711726271072,-500.0,0.00051232,120]
[320976456,1711726271082,-500.0,0.00051232,120]
[320976457,1711726271091,-500.0,0.00051232,120]
[320976458,1711726271100,-500.0,0.00051232,120]
[320976459,1711726271110,-500.0,0.00051232,120]
[320976460,1711726271119,-500.0,0.00051232,120]
[320976461,1711726271132,-500.0,0.00051232,120]
[320976462,1711726271141,-500.0,0.00051232,120]
[320976463,1711726271151,-500.0,0.00051232,120]
[320976464,1711726271161,-524.41,0.00051232,120]
[320976465,1711726271171,-500.0,0.00051232,120]
[320976466,1711726271180,-500.0,0.00051232,120]
[320976467,1711726271189,-500.0,0.00051232,120]
[320976468,1711726271199,-593.93,0.00051232,120]
[320976469,1711726271208,-500.0,0.00051232,120]
[320976470,1711726271218,-174.95,0.00051232,120]
[320976471,1711726271228,-2105.64,0.00051232,120]
[320976472,1711726271237,-500.0,0.00051232,120]
[320976473,1711726271246,-500.0,0.00051232,120]
[320976474,1711726271256,-357.55280962,0.00051232,120]
[320976475,1711726271266,-500.0,0.00051232,120]
[320976476,1711726271275,-435.25019769,0.00051232,120]
[320976477,1711726271284,-500.0,0.00051232,120]
[320976478,1711726271293,-832.0,0.00051232,120]
[320976479,1711726271305,-500.0,0.00051232,120]
[320976480,1711726271315,-500.0,0.00051232,120]
[320976481,1711726271325,-500.0,0.00051232,120]
[320976482,1711726271335,-500.0,0.00051232,120]
[320976483,1711726271479,-500.0,0.00051232,120]
[320976484,1711726271495,-500.0,0.00051232,120]
[320976485,1711726271506,-500.0,0.00051232,120]
[320976486,1711726271516,-500.0,0.00051232,120]
[320976487,1711726271525,-500.0,0.00051232,120]
[320976488,1711726271534,-500.0,0.00051232,120]
[320976489,1711726271543,-500.0,0.00051232,120]
[320976490,1711726271553,-500.0,0.00051232,120]
[320976491,1711726271562,-500.0,0.00051232,120]
[320976492,1711726271571,-372.98907949,0.00051232,120]
[320976493,1711726271580,-500.0,0.00051232,120]
[320976494,1711726271590,-500.0,0.00051232,120]
[320976495,1711726271600,-500.0,0.00051232,120]
[320976496,1711726271609,-644.28235409,0.00051232,120]
[320976497,1711726271619,-500.0,0.00051232,120]
[320976498,1711726271628,-500.0,0.00051232,120]
[320976499,1711726271638,-500.0,0.00051232,120]
[320976500,1711726271647,-1095.45,0.00051232,120]
[320976501,1711726271657,-500.0,0.00051232,120]
[320976502,1711726271666,-500.0,0.00051232,120]
[320976503,1711726271676,-500.0,0.00051232,120]
[320976504,1711726271685,-1919.57,0.00051232,120]
[320976505,1711726271694,-500.0,0.00051232,120]
[320976506,1711726271704,-500.0,0.00051232,120]
[320976507,1711726271713,-500.0,0.00051232,120]
[320976508,1711726271723,-500.0,0.00051232,120]
[320976509,1711726271732,-790.31,0.00051232,120]
[320976510,1711726271740,-500.0,0.00051232,120]
[320976511,1711726271751,-500.0,0.00051232,120]
[320976512,1711726271760,-3250.79,0.00051232,120]
[320976513,1711726271769,-500.0,0.00051232,120]
[320976514,1711726271779,-543.43,0.00051232,120]
[320976515,1711726271788,-2026.92,0.00051232,120]
[320976516,1711726271798,-2794.01,0.00051232,120]
[320976517,1711726271809,-508.65,0.00051232,120]
[320976518,1711726271819,-543.18,0.00051232,120]
[320976519,1711726271829,-500.0,0.00051232,120]
[320976520,1711726271838,-500.0,0.00051232,120]
[320976521,1711726271847,-725.25,0.00051232,120]
[320976522,1711726271856,-500.0,0.00051232,120]
[320976523,1711726271866,-500.0,0.00051232,120]
[320976524,1711726271875,-500.0,0.00051232,120]
[320976525,1711726271885,-1985.65,0.00051232,120]
[320976526,1711726271894,-500.0,0.00051232,120]
[320976527,1711726271904,-778.03,0.00051232,120]
[320976528,1711726271913,-966.8,0.00051232,120]
[320976529,1711726271923,-15575.03,0.00051232,120]
[320976530,1711726271932,-500.0,0.00051232,120]
[320976531,1711726271942,-1347.71,0.00051232,120]
[320976532,1711726271951,-500.0,0.00051232,120]
[320976533,1711726271960,-1542.42,0.00051232,120]
[320976534,1711726271970,-500.0,0.00051232,120]
[320976535,1711726271980,-500.0,0.00051232,120]
[320976536,1711726271990,-500.0,0.00051232,80]
[320976537,1711726272000,-1449.82,0.00051232,120]
[320976538,1711726272009,-2716.26,0.00051232,120]
[320976539,1711726272019,-764.96,0.00051232,120]
[320976540,1711726272029,-1663.53,0.00051232,120]
[320976541,1711726272039,-500.0,0.00051232,120]
[320976542,1711726272048,-1151.51,0.00051232,120]
[320976543,1711726272063,-500.0,0.00051232,120]
[320976544,1711726272072,-500.0,0.00051232,120]
[320976545,1711726272082,-769.64,0.00051232,120]
[320976546,1711726272092,-1016.62,0.00051232,120]
[320976547,1711726272102,-784.23,0.00051232,120]
[320976548,1711726272112,-500.0,0.00051232,120]
[320976549,1711726272122,-500.0,0.00051232,120]
[320976550,1711726272134,-500.0,0.00051232,120]
[320976551,1711726272144,-1622.26,0.00051232,120]
[320976552,1711726272154,-500.0,0.00051232,120]
[320976553,1711726272163,-500.0,0.00051232,120]
[320976554,1711726272174,-1424.61,0.00051232,120]
[320976555,1711726272184,-534.4,0.00051232,120]
[320976556,1711726272193,-500.0,0.00051232,120]
[320976557,1711726272203,-815.78,0.00051232,120]
[320976558,1711726272212,-500.0,0.00051232,120]
[320976559,1711726272221,-500.0,0.00051232,120]
[320976560,1711726272231,-500.0,0.00051232,120]
[320976561,1711726272241,-500.0,0.00051232,120]
[320976562,1711726272251,-500.0,0.00051232,120]
[320976563,1711726272261,-500.0,0.00051232,60]
[320976564,1711726272270,-992.25,0.00051232,120]
[320976565,1711726272280,-11718.94,0.00051232,120]
[320976566,1711726272290,-743.51,0.00051232,120]
[320976567,1711726272299,-765.17,0.00051232,120]
[320976568,1711726272312,-890.38,0.00051232,120]
[320976569,1711726272322,-553.36,0.00051232,120]
[320976570,1711726272331,-8521.15,0.00051232,120]
[320976571,1711726272341,-500.0,0.00051232,120]
[320976572,1711726272350,-249.73544029,0.00051232,120]
[320976573,1711726272360,-500.0,0.00051232,120]
[320976574,1711726272369,-500.0,0.00051232,120]
[320976575,1711726272378,-500.0,0.00051232,120]
[320976576,1711726272387,-648.88,0.00051232,120]
[320976577,1711726272398,-500.0,0.00051232,120]
[320976578,1711726272407,-1919.3,0.00051232,120]
[320976579,1711726272417,-500.0,0.00051232,120]
[320976580,1711726272426,-500.0,0.00051232,120]
[320976581,1711726272435,-2207.99,0.00051232,120]
[320976582,1711726272444,-500.0,0.00051232,120]
[320976583,1711726272454,-1309.66,0.00051232,120]
[320976584,1711726272463,-557.08,0.00051232,120]
[320976585,1711726272473,-1108.08,0.00051232,120]
[320976586,1711726272482,-1833.17,0.00051232,120]
[320976587,1711726272492,-500.0,0.00051232,120]
[320976588,1711726272502,-607.25,0.00051232,120]
[320976589,1711726272512,-815.81,0.00051232,120]
[320976590,1711726272521,-862.41,0.00051232,120]
[320976591,1711726272532,-1018.76,0.00051232,120]
[320976592,1711726272541,-500.0,0.00051232,120]
[320976593,1711726272553,-500.0,0.00051232,120]
[320976594,1711726272563,-500.0,0.00051232,120]
[320976595,1711726272573,-1702.99,0.00051232,120]
[320976596,1711726272582,-1165.7,0.00051232,120]
[320976597,1711726272592,-1004.77,0.00051232,120]
[320976598,1711726272601,-696.93,0.00051232,120]
[320976599,1711726272611,-173.98892939,0.00051232,120]
[320976600,1711726272620,-500.0,0.00051232,120]
[320976601,1711726272630,-500.0,0.00051232,120]
[320976602,1711726272639,-500.0,0.00051232,120]
[320976603,1711726272648,-1354.93,0.00051232,21]
[320976604,1711726272657,-500.0,0.00051232,120]
[320976605,1711726272667,-977.65,0.00051232,120]
[320976606,1711726272676,-1113.41,0.00051232,120]
[320976607,1711726272686,-500.0,0.00051232,120]
[320976608,1711726272695,-3333.95,0.00051232,120]
[320976609,1711726272705,-500.0,0.00051232,120]
[320976610,1711726272714,-500.0,0.00051232,120]
[320976611,1711726272723,-572.67,0.00051232,120]
[320976612,1711726272732,-683.76,0.00051232,120]
[320976613,1711726272742,-500.0,0.00051232,120]
[320976614,1711726272751,-500.0,0.00051232,120]
[320976615,1711726272760,-7484.68,0.00051232,120]
[320976616,1711726272769,-1354.15,0.00051232,120]
[320976617,1711726272779,-1280.61,0.00051232,120]
[320976618,1711726272788,-500.0,0.00051232,120]
[320976619,1711726272798,-500.0,0.00051232,120]
[320976620,1711726272812,-3298.9,0.00051232,120]
[320976621,1711726272821,-553.1,0.00051232,120]
[320976622,1711726272831,-3130.3,0.00051232,120]
[320976623,1711726272840,-2135.45,0.00051232,120]
[320976624,1711726272849,-1018.52,0.00051232,120]
[320976625,1711726272859,-2568.4,0.00051232,120]
[320976626,1711726272869,-594.87,0.00051232,120]
[320976627,1711726272878,-824.29,0.00051232,120]
[320976628,1711726272887,-628.61,0.00051232,120]
[320976629,1711726272896,-1054.95,0.00051232,120]
[320976630,1711726272906,-947.76,0.00051232,120]
[320976631,1711726272916,-500.0,0.00051232,120]
[320976632,1711726272925,-500.0,0.00051232,120]
[320976633,1711726272935,-500.0,0.00051232,120]
[320976634,1711726272944,-805.33,0.00051232,120]
[320976635,1711726272953,-500.0,0.00051232,120]
[320976636,1711726272963,-652.14,0.00051232,120]
[320976637,1711726272973,-500.0,0.00051232,120]
[320976638,1711726272982,-1684.07,0.00051232,120]
[320976639,1711726272992,-1222.42,0.00051232,120]
[320976640,1711726273001,-500.0,0.00051232,120]
[320976641,1711726273011,-500.0,0.00051232,120]
[320976642,1711726273020,-500.0,0.00051232,120]
[320976643,1711726273030,-647.43,0.00051232,120]
[320976644,1711726273040,-637.47,0.00051232,120]
[320976645,1711726273049,-929.07,0.00051232,120]
[320976646,1711726273062,-500.0,0.00051232,120]
[320976647,1711726273072,-1752.94,0.00051232,120]
[320976648,1711726273081,-506.23,0.00051232,120]
[320976649,1711726273091,-1482.27,0.00051232,120]
[320976650,1711726273101,-500.0,0.00051232,120]
[320976651,1711726273110,-1080.07,0.00051232,120]
[320976652,1711726273119,-500.0,0.00051232,120]
[320976653,1711726273132,-500.0,0.00051232,120]
[320976654,1711726273141,-917.61,0.00051232,120]
[320976655,1711726273150,-500.0,0.00051232,120]
[320976656,1711726273160,-824.53,0.00051232,120]
[320976657,1711726273171,-641.26,0.00051232,120]
[320976658,1711726273180,-579.18,0.00051232,120]
[320976659,1711726273190,-572.87,0.00051232,120]
[320976660,1711726273200,-512.89295352,0.00051232,120]
[320976661,1711726273209,-1389.6,0.00051232,120]
[320976662,1711726273219,-975.56,0.00051232,120]
[320976663,1711726273229,-500.0,0.00051232,120]
[320976664,1711726273240,-500.0,0.00051232,120]
[320976665,1711726273250,-157.78437131,0.00051241,60]
[320976666,1711726273259,-156.57235485,0.00051276,60]
[320976667,1711726273268,-152.41256319,0.00051306,60]
[320976668,1711726273278,-5163.75530445,0.00051406,28]
[320976669,1711726273288,-151.0,0.00051425,120]
[320976670,1711726273297,-163.18,0.000515,7]
[320976671,1711726273308,-163.18,0.000515,7]
[320976672,1711726273318,-163.18,0.000515,7]
[320976673,1711726273327,-163.18,0.000515,7]
[320976674,1711726273336,-163.18,0.000515,7]
[320976675,1711726273345,-163.18,0.000515,7]
[320976676,1711726273355,-163.18,0.000515,7]
[320976677,1711726273364,-163.18,0.000515,7]
[320976678,1711726273374,-163.18,0.000515,7]
[320976679,1711726273383,-163.18,0.000515,7]
[320976680,1711726273392,-163.18,0.000515,7]
[320976681,1711726273401,-163.18,0.000515,7]
[320976682,1711726273411,-8012.99,0.000515,7]
[320976683,1711726273422,-8012.99,0.000515,7]
[320976684,1711726273432,-8012.99,0.000515,7]
[320976685,1711726273443,-8012.99,0.000515,7]
[320976686,1711726273453,-8012.99,0.000515,7]
[320976687,1711726273463,-8012.99,0.000515,7]
[320976688,1711726273473,-8012.99,0.000515,7]
[320976689,1711726273483,-8012.99,0.000515,7]
[320976690,1711726273493,-8012.99,0.000515,7]
[320976691,1711726273503,-8012.99,0.000515,7]
[320976692,1711726273512,-8012.99,0.000515,7]
[320976693,1711726273522,-8012.99,0.000515,7]
[320976694,1711726273532,-8012.99,0.000515,7]
[320976695,1711726273543,-8012.99,0.000515,7]
[320976696,1711726273556,-8012.99,0.000515,7]
[320976697,1711726273567,-8012.99,0.000515,7]